[Event "*** Titled Tuesday Blitz"]
[Site "Chess.com"]
[Date "2018.04.03"]
[Round "3"]
[White "a_kandil"]
[Black "andante"]
[Result "1-0"]
[WhiteElo "2305"]
[BlackElo "2181"]
[TimeControl "180+2"]
[EndTime "13:37:24 PDT"]
[Termination "a_kandil won by resignation"]

1. e4 {[%clk 0:03:01.9]} 1... c5 {[%clk 0:02:58.9]} 2. Nf3 {[%clk 0:03:03.4]}
2... d6 {[%clk 0:03:00.1]} 3. d4 {[%clk 0:03:04.9]} 3... cxd4 {[%clk 0:03:01.3]}
4. Nxd4 {[%clk 0:03:06.8]} 4... Nf6 {[%clk 0:03:02.6]} 5. Nc3 {[%clk 0:03:08.2]}
5... a6 {[%clk 0:03:03.8]} 6. f3 {[%clk 0:03:09.4]} 6... e5 {[%clk 0:03:03.8]}
7. Nb3 {[%clk 0:03:10.9]} 7... Be7 {[%clk 0:03:04.1]} 8. Be3 {[%clk 0:03:12.4]}
8... O-O {[%clk 0:03:04.9]} 9. Qd2 {[%clk 0:03:13.9]} 9... Nc6 {[%clk
0:03:03.1]} 10. O-O-O {[%clk 0:03:15]} 10... a5 {[%clk 0:03:03.9]} 11. a4 {[%clk
0:03:15.5]} 11... Be6 {[%clk 0:03:03.4]} 12. Bb5 {[%clk 0:03:13.6]} 12... Nb4
{[%clk 0:03:03.2]} 13. Kb1 {[%clk 0:03:12.5]} 13... Rc8 {[%clk 0:03:04.5]} 14.
g4 {[%clk 0:03:13.7]} 14... Qc7 {[%clk 0:02:48.7]} 15. h4 {[%clk 0:03:04.2]}
15... Rfd8 {[%clk 0:02:15.5]} 16. g5 {[%clk 0:03:05.1]} 16... Nh5 {[%clk
0:02:11.4]} 17. Qf2 {[%clk 0:03:02.5]} 17... Qb8 {[%clk 0:01:50.4]} 18. Bb6
{[%clk 0:02:54.6]} 18... d5 {[%clk 0:01:42.5]} 19. Bxd8 {[%clk 0:02:33.2]} 19...
Rxd8 {[%clk 0:01:40.7]} 20. Nxd5 {[%clk 0:02:31.4]} 20... Nxd5 {[%clk
0:01:39.9]} 21. exd5 {[%clk 0:02:33.3]} 21... Bxd5 {[%clk 0:01:34.3]} 22. Nxa5
{[%clk 0:02:13.1]} 22... Nf4 {[%clk 0:01:30.5]} 23. Nc4 {[%clk 0:02:12.4]} 23...
Rc8 {[%clk 0:01:22.6]} 24. Nb6 {[%clk 0:02:11.9]} 24... Bc5 {[%clk 0:01:19.8]}
25. Nxc8 {[%clk 0:01:31.4]} 25... Bxf2 {[%clk 0:01:16.8]} 26. Ne7+ {[%clk
0:01:33]} 26... Kf8 {[%clk 0:01:17.3]} 27. Nxd5 {[%clk 0:01:34.9]} 27... Ne6
{[%clk 0:01:05.6]} 28. Rd2 {[%clk 0:01:25.1]} 28... Bg3 {[%clk 0:00:49.3]} 29.
Rg2 {[%clk 0:01:09.2]} 29... Qd8 {[%clk 0:00:38.9]} 30. Rxg3 {[%clk 0:00:41.1]}
30... Qxd5 {[%clk 0:00:38.3]} 31. Re1 {[%clk 0:00:36.1]} 31... Nd4 {[%clk
0:00:37.9]} 32. f4 {[%clk 0:00:27.4]} 32... e4 {[%clk 0:00:18.2]} 33. Rge3
{[%clk 0:00:22.2]} 33... Nf3 {[%clk 0:00:18.2]} 34. R1e2 {[%clk 0:00:17.1]}
34... f5 {[%clk 0:00:15.5]} 35. gxf6 {[%clk 0:00:17.6]} 35... gxf6 {[%clk
0:00:16.6]} 36. Kc1 {[%clk 0:00:16.9]} 36... f5 {[%clk 0:00:15.9]} 37. Rc3
{[%clk 0:00:15.8]} 37... Qd4 {[%clk 0:00:16.1]} 38. Rg2 {[%clk 0:00:16.9]} 38...
Ke7 {[%clk 0:00:08.2]} 39. Rc7+ {[%clk 0:00:17.2]} 39... Kd6 {[%clk 0:00:09.3]}
40. Rd7+ {[%clk 0:00:18.4]} 40... Kc5 {[%clk 0:00:10.9]} 41. Rxd4 {[%clk
0:00:20.3]} 41... Kxd4 {[%clk 0:00:12.4]} 42. c3+ {[%clk 0:00:21.4]} 42... Ke3
{[%clk 0:00:13.6]} 43. Re2+ {[%clk 0:00:22.2]} 43... Kxf4 {[%clk 0:00:14.1]} 44.
Bd7 {[%clk 0:00:22.4]} 44... e3 {[%clk 0:00:14.2]} 45. Kc2 {[%clk 0:00:17.7]}
45... Ne5 {[%clk 0:00:15.6]} 46. Bxf5 {[%clk 0:00:16.6]} 46... Kxf5 {[%clk
0:00:16.2]} 47. Rxe3 {[%clk 0:00:18.5]} 47... Ng6 {[%clk 0:00:16.4]} 48. h5
{[%clk 0:00:18.6]} 48... Nf4 {[%clk 0:00:16.4]} 49. Re7 {[%clk 0:00:19.1]} 49...
h6 {[%clk 0:00:16]} 50. Rxb7 {[%clk 0:00:20.3]} 1-0

[Event "*** Titled Tuesday Blitz"]
[Site "Chess.com"]
[Date "2018.04.03"]
[Round "3"]
[White "temiksmozg"]
[Black "ShimanovAlex"]
[Result "1-0"]
[WhiteElo "2526"]
[BlackElo "2707"]
[TimeControl "180+2"]
[EndTime "13:37:29 PDT"]
[Termination "temiksmozg won on time"]

1. d4 {[%clk 0:03:01.9]} 1... Nf6 {[%clk 0:03:00.4]} 2. c4 {[%clk 0:03:03]} 2...
g6 {[%clk 0:03:01.7]} 3. Nc3 {[%clk 0:03:03.1]} 3... Bg7 {[%clk 0:03:02.4]} 4.
e4 {[%clk 0:03:03.6]} 4... d6 {[%clk 0:03:03.2]} 5. Nf3 {[%clk 0:03:04.9]} 5...
O-O {[%clk 0:03:03.8]} 6. Be2 {[%clk 0:03:06.4]} 6... Na6 {[%clk 0:03:04.7]} 7.
O-O {[%clk 0:03:05.7]} 7... e5 {[%clk 0:03:05.8]} 8. Re1 {[%clk 0:03:05.4]} 8...
c6 {[%clk 0:03:04.4]} 9. Bf1 {[%clk 0:03:05.5]} 9... exd4 {[%clk 0:03:04]} 10.
Nxd4 {[%clk 0:03:05.4]} 10... Ng4 {[%clk 0:03:05.5]} 11. h3 {[%clk 0:03:03.9]}
11... Qb6 {[%clk 0:03:06.5]} 12. hxg4 {[%clk 0:02:56.2]} 12... Qxd4 {[%clk
0:03:07.3]} 13. Qxd4 {[%clk 0:02:40.4]} 13... Bxd4 {[%clk 0:03:07.1]} 14. Rd1
{[%clk 0:02:39.6]} 14... Be5 {[%clk 0:02:52.3]} 15. f3 {[%clk 0:02:38.4]} 15...
Nc5 {[%clk 0:02:48.8]} 16. Be3 {[%clk 0:02:31.4]} 16... a5 {[%clk 0:02:47]} 17.
Rd2 {[%clk 0:02:31.2]} 17... a4 {[%clk 0:02:42.4]} 18. Rc1 {[%clk 0:02:30.6]}
18... Be6 {[%clk 0:02:41.9]} 19. Nd1 {[%clk 0:02:25.3]} 19... Rfb8 {[%clk
0:02:37.7]} 20. Nf2 {[%clk 0:02:17.7]} 20... a3 {[%clk 0:01:57.8]} 21. b4 {[%clk
0:02:00.1]} 21... Nb3 {[%clk 0:01:53.9]} 22. axb3 {[%clk 0:01:43.9]} 22... a2
{[%clk 0:01:54.8]} 23. f4 {[%clk 0:01:45]} 23... Bg7 {[%clk 0:01:14.4]} 24. Rxd6
{[%clk 0:01:34.8]} 24... a1=Q {[%clk 0:01:12.1]} 25. Rxa1 {[%clk 0:01:35.5]}
25... Rxa1 {[%clk 0:01:14]} 26. f5 {[%clk 0:01:29.7]} 26... Bf8 {[%clk
0:00:38.5]} 27. Rd3 {[%clk 0:01:28.7]} 27... Bxb4 {[%clk 0:00:37.4]} 28. fxe6
{[%clk 0:01:27.5]} 28... fxe6 {[%clk 0:00:39.3]} 29. e5 {[%clk 0:01:14.1]} 29...
Rf8 {[%clk 0:00:37.8]} 30. Bh6 {[%clk 0:01:15.3]} 30... Rfa8 {[%clk 0:00:34.8]}
31. Ne4 {[%clk 0:01:12.4]} 31... Be7 {[%clk 0:00:25.9]} 32. Rd7 {[%clk
0:01:07.8]} 32... Re1 {[%clk 0:00:16]} 33. Rxe7 {[%clk 0:01:05.9]} 33... Rxe4
{[%clk 0:00:16.8]} 34. Rg7+ {[%clk 0:01:01.6]} 34... Kh8 {[%clk 0:00:17.8]} 35.
Rxb7 {[%clk 0:01:01.5]} 35... Rxg4 {[%clk 0:00:19.3]} 36. b4 {[%clk 0:00:58.4]}
36... Re4 {[%clk 0:00:16.6]} 37. Bg5 {[%clk 0:00:56.1]} 37... Kg8 {[%clk
0:00:14.9]} 38. b5 {[%clk 0:00:52.3]} 38... cxb5 {[%clk 0:00:15.3]} 39. cxb5
{[%clk 0:00:54.2]} 39... Ra1 {[%clk 0:00:15.3]} 40. Bh6 {[%clk 0:00:52.7]} 40...
Ree1 {[%clk 0:00:11.3]} 41. Rg7+ {[%clk 0:00:50.9]} 41... Kf8 {[%clk 0:00:11.7]}
42. Ra7+ {[%clk 0:00:51.5]} 42... Ke8 {[%clk 0:00:10.7]} 43. Rxa1 {[%clk
0:00:52.3]} 43... Rxa1 {[%clk 0:00:12.6]} 44. b6 {[%clk 0:00:52]} 44... Rb1
{[%clk 0:00:12.2]} 45. Be3 {[%clk 0:00:52.5]} 45... Kd7 {[%clk 0:00:13.5]} 46.
Kf2 {[%clk 0:00:53.4]} 46... Rb4 {[%clk 0:00:14.3]} 47. Be2 {[%clk 0:00:51.8]}
47... Rb2 {[%clk 0:00:11.5]} 48. Kf3 {[%clk 0:00:52.2]} 48... Kc6 {[%clk
0:00:11.1]} 49. Bd3 {[%clk 0:00:52.9]} 49... Kb7 {[%clk 0:00:07.9]} 50. Be4+
{[%clk 0:00:53.6]} 50... Kb8 {[%clk 0:00:09.4]} 51. b7 {[%clk 0:00:54.4]} 51...
Rb5 {[%clk 0:00:09.1]} 52. Bg5 {[%clk 0:00:49.2]} 52... Rb3+ {[%clk 0:00:07.8]}
53. Kf4 {[%clk 0:00:49.1]} 53... Rxb7 {[%clk 0:00:03.4]} 54. Bxb7 {[%clk
0:00:49]} 54... Kxb7 {[%clk 0:00:05.3]} 55. Bf6 {[%clk 0:00:49.6]} 55... h6
{[%clk 0:00:04.8]} 56. Bg7 {[%clk 0:00:50]} 1-0

[Event "*** Titled Tuesday Blitz"]
[Site "Chess.com"]
[Date "2018.04.03"]
[Round "3"]
[White "Eliwood44"]
[Black "FMAntonio"]
[Result "0-1"]
[WhiteElo "2230"]
[BlackElo "2380"]
[TimeControl "180+2"]
[EndTime "13:37:29 PDT"]
[Termination "FMAntonio won by resignation"]

1. d4 {[%clk 0:03:01.9]} 1... Nf6 {[%clk 0:03:00.6]} 2. Nf3 {[%clk 0:03:02.7]}
2... e6 {[%clk 0:03:00.2]} 3. e3 {[%clk 0:03:00.9]} 3... c5 {[%clk 0:02:56.7]}
4. Bd3 {[%clk 0:03:01.4]} 4... b6 {[%clk 0:02:56.7]} 5. O-O {[%clk 0:03:01.5]}
5... Bb7 {[%clk 0:02:57.4]} 6. c4 {[%clk 0:03:02.7]} 6... Be7 {[%clk 0:02:57.3]}
7. Nc3 {[%clk 0:03:02.7]} 7... O-O {[%clk 0:02:58.1]} 8. d5 {[%clk 0:03:03.7]}
8... exd5 {[%clk 0:02:55.2]} 9. cxd5 {[%clk 0:03:05.6]} 9... d6 {[%clk
0:02:57.1]} 10. e4 {[%clk 0:03:05.8]} 10... Nbd7 {[%clk 0:02:57.7]} 11. h3
{[%clk 0:03:03]} 11... Rb8 {[%clk 0:02:56.2]} 12. Re1 {[%clk 0:03:03]} 12... a6
{[%clk 0:02:56.4]} 13. a4 {[%clk 0:03:03.7]} 13... Qc7 {[%clk 0:02:57.4]} 14.
Bf4 {[%clk 0:03:03.1]} 14... c4 {[%clk 0:02:57.7]} 15. Bf1 {[%clk 0:03:02.7]}
15... Ne5 {[%clk 0:02:39.4]} 16. Nd4 {[%clk 0:02:51.4]} 16... Nfd7 {[%clk
0:02:39.5]} 17. Bg3 {[%clk 0:02:42.2]} 17... Rfe8 {[%clk 0:02:16]} 18. Rc1
{[%clk 0:02:38.1]} 18... Nc5 {[%clk 0:02:08.1]} 19. Bxe5 {[%clk 0:02:27.5]}
19... dxe5 {[%clk 0:02:09.2]} 20. Nf5 {[%clk 0:02:27.9]} 20... Bg5 {[%clk
0:02:07.1]} 21. Rc2 {[%clk 0:02:24.1]} 21... Nb3 {[%clk 0:01:57.5]} 22. Qg4
{[%clk 0:02:13.4]} 22... Bf6 {[%clk 0:01:51.6]} 23. d6 {[%clk 0:02:08.4]} 23...
Qc5 {[%clk 0:01:46.4]} 24. Nd5 {[%clk 0:00:46.2]} 24... Bxd5 {[%clk 0:01:45.2]}
25. exd5 {[%clk 0:00:47.4]} 25... b5 {[%clk 0:01:44.1]} 26. axb5 {[%clk
0:00:49.3]} 26... axb5 {[%clk 0:01:45.1]} 27. Rc3 {[%clk 0:00:43.9]} 27... Nd4
{[%clk 0:01:33.5]} 28. Nxg7 {[%clk 0:00:34.2]} 28... Bxg7 {[%clk 0:01:26.5]} 29.
Rg3 {[%clk 0:00:33.6]} 29... Nf5 {[%clk 0:01:27.6]} 30. Qxf5 {[%clk 0:00:32.4]}
30... Qxd6 {[%clk 0:01:21.2]} 31. Re4 {[%clk 0:00:32]} 31... Kh8 {[%clk
0:00:37.2]} 32. Rh4 {[%clk 0:00:32]} 32... h6 {[%clk 0:00:36.5]} 33. Qxf7 {[%clk
0:00:23]} 33... Re7 {[%clk 0:00:33.8]} 34. Qf5 {[%clk 0:00:13]} 34... Rf8 {[%clk
0:00:30.6]} 35. Qe4 {[%clk 0:00:12.9]} 35... Qf6 {[%clk 0:00:29.2]} 36. Rhg4
{[%clk 0:00:09.2]} 36... Qxf2+ {[%clk 0:00:28.2]} 37. Kh2 {[%clk 0:00:10.4]}
37... Qxf1 {[%clk 0:00:26]} 38. d6 {[%clk 0:00:11.4]} 38... Ref7 {[%clk
0:00:23.9]} 39. Qg6 {[%clk 0:00:07.8]} 39... Qf6 {[%clk 0:00:22.4]} 40. Qh5
{[%clk 0:00:08.5]} 40... Kh7 {[%clk 0:00:09.2]} 41. Rg6 {[%clk 0:00:08.6]} 41...
Qf4 {[%clk 0:00:10.3]} 42. Rg4 {[%clk 0:00:08.3]} 42... Qf5 {[%clk 0:00:11.2]}
43. Qh4 {[%clk 0:00:09.3]} 43... Bf6 {[%clk 0:00:10.9]} 44. Qxh6+ {[%clk
0:00:05.8]} 44... Kxh6 {[%clk 0:00:11.4]} 0-1

[Event "*** Titled Tuesday Blitz"]
[Site "Chess.com"]
[Date "2018.04.03"]
[Round "3"]
[White "djano"]
[Black "FitnessBen"]
[Result "1-0"]
[WhiteElo "2443"]
[BlackElo "2492"]
[TimeControl "180+2"]
[EndTime "13:37:36 PDT"]
[Termination "djano won by resignation"]

1. d4 {[%clk 0:03:00.9]} 1... Nf6 {[%clk 0:03:00.3]} 2. c4 {[%clk 0:02:57.4]}
2... e6 {[%clk 0:03:00.9]} 3. g3 {[%clk 0:02:57.1]} 3... d5 {[%clk 0:02:59.4]}
4. Bg2 {[%clk 0:02:58.2]} 4... Be7 {[%clk 0:03:00.7]} 5. Nf3 {[%clk 0:02:59.4]}
5... O-O {[%clk 0:03:02.2]} 6. O-O {[%clk 0:03:01]} 6... dxc4 {[%clk 0:03:03.1]}
7. Qa4 {[%clk 0:02:58.1]} 7... a6 {[%clk 0:03:02.6]} 8. Qxc4 {[%clk 0:02:59.1]}
8... b5 {[%clk 0:03:03.5]} 9. Qc2 {[%clk 0:03:00.6]} 9... Bb7 {[%clk 0:03:05]}
10. Bg5 {[%clk 0:03:00.9]} 10... Be4 {[%clk 0:02:59.4]} 11. Qc1 {[%clk
0:03:00.8]} 11... Nbd7 {[%clk 0:02:57.2]} 12. Nbd2 {[%clk 0:02:59.4]} 12... Bd5
{[%clk 0:02:49.1]} 13. Nb3 {[%clk 0:02:56.5]} 13... Rc8 {[%clk 0:02:33.2]} 14.
Nc5 {[%clk 0:02:54.3]} 14... Nxc5 {[%clk 0:02:33.9]} 15. dxc5 {[%clk 0:02:56.2]}
15... c6 {[%clk 0:02:14.2]} 16. a4 {[%clk 0:02:47.1]} 16... h6 {[%clk
0:01:56.2]} 17. Bf4 {[%clk 0:02:45.1]} 17... Ra8 {[%clk 0:01:46.8]} 18. Rd1
{[%clk 0:02:45]} 18... Qa5 {[%clk 0:01:26.9]} 19. Nd4 {[%clk 0:02:34.9]} 19...
bxa4 {[%clk 0:01:01.4]} 20. Nxc6 {[%clk 0:01:47.2]} 20... Bxc6 {[%clk
0:00:47.3]} 21. Bxc6 {[%clk 0:01:49.1]} 21... Rac8 {[%clk 0:00:48.1]} 22. Rxa4
{[%clk 0:01:47.9]} 22... Qxc5 {[%clk 0:00:41.9]} 23. Qxc5 {[%clk 0:01:43.6]}
23... Bxc5 {[%clk 0:00:43.3]} 24. Rxa6 {[%clk 0:01:45.2]} 24... Ng4 {[%clk
0:00:38.4]} 25. e3 {[%clk 0:01:36.6]} 25... e5 {[%clk 0:00:32.7]} 26. Bd7 {[%clk
0:01:24.1]} 26... Rcd8 {[%clk 0:00:32.6]} 27. Bxg4 {[%clk 0:01:24.5]} 27...
Rxd1+ {[%clk 0:00:20.4]} 28. Bxd1 {[%clk 0:01:24.3]} 28... exf4 {[%clk
0:00:22.1]} 29. gxf4 {[%clk 0:01:26.2]} 29... Rb8 {[%clk 0:00:23.3]} 30. b3
{[%clk 0:01:23.7]} 30... Bb4 {[%clk 0:00:23.9]} 31. Kg2 {[%clk 0:01:23.1]} 31...
g6 {[%clk 0:00:24.4]} 32. Be2 {[%clk 0:01:24.1]} 32... Kg7 {[%clk 0:00:25.7]}
33. Bc4 {[%clk 0:01:22.6]} 33... Rb7 {[%clk 0:00:26.8]} 34. e4 {[%clk
0:01:23.1]} 34... g5 {[%clk 0:00:27.4]} 35. fxg5 {[%clk 0:01:22.9]} 35... hxg5
{[%clk 0:00:28.3]} 36. Kf3 {[%clk 0:01:14.2]} 36... Rd7 {[%clk 0:00:28.6]} 37.
Kg4 {[%clk 0:01:12.8]} 37... f6 {[%clk 0:00:25.1]} 38. f3 {[%clk 0:01:08.9]}
38... Bc5 {[%clk 0:00:21.1]} 39. e5 {[%clk 0:01:05.3]} 39... fxe5 {[%clk
0:00:20.6]} 40. Kxg5 {[%clk 0:01:06.8]} 40... Be3+ {[%clk 0:00:20.7]} 41. Kf5
{[%clk 0:01:08]} 41... Bf4 {[%clk 0:00:22.2]} 42. Rg6+ {[%clk 0:01:09]} 42...
Kh7 {[%clk 0:00:22.6]} 43. Rg4 {[%clk 0:01:07.3]} 43... Rd8 {[%clk 0:00:22.9]}
44. Kf6 {[%clk 0:01:07.6]} 44... Rf8+ {[%clk 0:00:23.2]} 45. Bf7 {[%clk
0:01:08.8]} 45... Rb8 {[%clk 0:00:23]} 46. Rh4+ {[%clk 0:01:09.8]} 46... Bh6
{[%clk 0:00:24]} 47. Bg6+ {[%clk 0:01:11.2]} 47... Kg8 {[%clk 0:00:25.2]} 48.
Rxh6 {[%clk 0:01:12.7]} 48... Rb6+ {[%clk 0:00:25.8]} 49. Kg5 {[%clk 0:01:10.1]}
49... Rxb3 {[%clk 0:00:22.1]} 50. Be4 {[%clk 0:01:09.9]} 50... Rb2 {[%clk
0:00:18.8]} 51. Kf5 {[%clk 0:01:07.2]} 51... Kg7 {[%clk 0:00:18.5]} 52. Rh5
{[%clk 0:01:07.9]} 52... Ra2 {[%clk 0:00:16.6]} 53. Kxe5 {[%clk 0:01:08.1]}
53... Ra5+ {[%clk 0:00:17]} 54. Bd5 {[%clk 0:01:09.3]} 54... Kg6 {[%clk
0:00:18.3]} 55. Rh3 {[%clk 0:01:08.2]} 55... Kg5 {[%clk 0:00:19.2]} 56. f4+
{[%clk 0:01:06.9]} 56... Kg4 {[%clk 0:00:20.2]} 57. Rg3+ {[%clk 0:01:08.2]}
57... Kh4 {[%clk 0:00:21]} 58. Rg8 {[%clk 0:01:06.9]} 58... Ra7 {[%clk
0:00:19.3]} 59. f5 {[%clk 0:01:06.5]} 59... Kh5 {[%clk 0:00:17.5]} 60. f6 {[%clk
0:01:05.6]} 60... Kh6 {[%clk 0:00:18.1]} 61. f7 {[%clk 0:01:05.6]} 61... Re7+
{[%clk 0:00:18.3]} 62. Kf6 {[%clk 0:01:03.1]} 1-0

[Event "*** Titled Tuesday Blitz"]
[Site "Chess.com"]
[Date "2018.04.03"]
[Round "3"]
[White "Vadim_Biliy"]
[Black "SamCopeland"]
[Result "0-1"]
[WhiteElo "2123"]
[BlackElo "2024"]
[TimeControl "180+2"]
[EndTime "13:37:38 PDT"]
[Termination "SamCopeland won by checkmate"]

1. d4 {[%clk 0:03:00.2]} 1... f5 {[%clk 0:02:55.1]} 2. Nc3 {[%clk 0:02:58.8]}
2... Nf6 {[%clk 0:02:52.4]} 3. Bg5 {[%clk 0:02:59.3]} 3... e6 {[%clk 0:02:45.7]}
4. e4 {[%clk 0:02:57.9]} 4... fxe4 {[%clk 0:02:45.2]} 5. Nxe4 {[%clk 0:02:57]}
5... Be7 {[%clk 0:02:46.4]} 6. Nxf6+ {[%clk 0:02:53.4]} 6... Bxf6 {[%clk
0:02:48.3]} 7. Bxf6 {[%clk 0:02:53.6]} 7... Qxf6 {[%clk 0:02:50.2]} 8. Qh5+
{[%clk 0:02:45.5]} 8... Qf7 {[%clk 0:02:17.8]} 9. Qxf7+ {[%clk 0:02:43.3]} 9...
Kxf7 {[%clk 0:02:19.7]} 10. f4 {[%clk 0:02:41.1]} 10... b6 {[%clk 0:02:17.5]}
11. Be2 {[%clk 0:02:38.8]} 11... Bb7 {[%clk 0:02:17.7]} 12. Bf3 {[%clk
0:02:39.6]} 12... Bxf3 {[%clk 0:02:12]} 13. Nxf3 {[%clk 0:02:39.1]} 13... Nc6
{[%clk 0:01:54.2]} 14. Ne5+ {[%clk 0:02:38.9]} 14... Nxe5 {[%clk 0:01:54.2]} 15.
fxe5 {[%clk 0:02:39.2]} 15... Kg6 {[%clk 0:01:51.1]} 16. Rf1 {[%clk 0:02:37.9]}
16... Rhf8 {[%clk 0:01:52]} 17. Ke2 {[%clk 0:02:38.7]} 17... Rxf1 {[%clk
0:01:28.1]} 18. Rxf1 {[%clk 0:02:37.6]} 18... Rc8 {[%clk 0:01:22.4]} 19. c4
{[%clk 0:02:26]} 19... c5 {[%clk 0:01:10.9]} 20. Kd3 {[%clk 0:02:25.4]} 20...
cxd4 {[%clk 0:01:00.5]} 21. Kxd4 {[%clk 0:02:25.3]} 21... Rc5 {[%clk 0:01:00.5]}
22. b4 {[%clk 0:02:23.3]} 22... Rc7 {[%clk 0:01:00.8]} 23. Rf8 {[%clk
0:02:09.3]} 23... h5 {[%clk 0:00:48.3]} 24. h4 {[%clk 0:02:00.5]} 24... Kh7
{[%clk 0:00:46.4]} 25. a4 {[%clk 0:01:58]} 25... Kg6 {[%clk 0:00:45.6]} 26. c5
{[%clk 0:01:44.2]} 26... bxc5+ {[%clk 0:00:44.8]} 27. bxc5 {[%clk 0:01:45.1]}
27... Rb7 {[%clk 0:00:45.7]} 28. Kc4 {[%clk 0:01:42]} 28... a5 {[%clk
0:00:44.6]} 29. Rd8 {[%clk 0:01:36.3]} 29... Kf7 {[%clk 0:00:44.6]} 30. c6
{[%clk 0:01:27.2]} 30... dxc6 {[%clk 0:00:38.3]} 31. Kc5 {[%clk 0:01:27.9]}
31... Rb4 {[%clk 0:00:37.9]} 32. Rd7+ {[%clk 0:01:27.4]} 32... Kg6 {[%clk
0:00:37.2]} 33. Kd6 {[%clk 0:01:27.3]} 33... Rxa4 {[%clk 0:00:35.1]} 34. Kxe6
{[%clk 0:01:27.6]} 34... Rxh4 {[%clk 0:00:32.5]} 35. Rc7 {[%clk 0:01:22.9]}
35... Rg4 {[%clk 0:00:32.3]} 36. Rxc6 {[%clk 0:01:20.5]} 36... Rxg2 {[%clk
0:00:32.8]} 37. Ke7+ {[%clk 0:01:21]} 37... Kf5 {[%clk 0:00:32.6]} 38. e6 {[%clk
0:01:21.9]} 38... Re2 {[%clk 0:00:28.9]} 39. Rc5+ {[%clk 0:01:21.4]} 39... Kg4
{[%clk 0:00:29.9]} 40. Rxa5 {[%clk 0:01:19.1]} 40... h4 {[%clk 0:00:30.6]} 41.
Kf7 {[%clk 0:01:20]} 41... h3 {[%clk 0:00:27.8]} 42. e7 {[%clk 0:01:12.6]} 42...
g5 {[%clk 0:00:21.5]} 43. Kf6 {[%clk 0:01:01.7]} 43... Rxe7 {[%clk 0:00:18.3]}
44. Rxg5+ {[%clk 0:01:01]} 44... Kf4 {[%clk 0:00:16.2]} 45. Rh5 {[%clk
0:01:00.5]} 45... Re3 {[%clk 0:00:16.2]} 46. Rh4+ {[%clk 0:00:48.3]} 46... Kg3
{[%clk 0:00:16.6]} 47. Rh8 {[%clk 0:00:47.9]} 47... h2 {[%clk 0:00:16.3]} 48.
Kf5 {[%clk 0:00:48.6]} 48... Kg2 {[%clk 0:00:16.1]} 49. Kf4 {[%clk 0:00:46.4]}
49... Rf3+ {[%clk 0:00:16.7]} 50. Kg4 {[%clk 0:00:46.5]} 50... Ra3 {[%clk
0:00:14.3]} 51. Rb8 {[%clk 0:00:41.1]} 51... Ra4+ {[%clk 0:00:14]} 52. Kg5
{[%clk 0:00:41.4]} 52... h1=Q {[%clk 0:00:14.2]} 53. Rb2+ {[%clk 0:00:42]} 53...
Kf3 {[%clk 0:00:14.5]} 54. Rb3+ {[%clk 0:00:42.8]} 54... Ke4 {[%clk 0:00:14.6]}
55. Rg3 {[%clk 0:00:39.7]} 55... Ra5+ {[%clk 0:00:13.2]} 56. Kg6 {[%clk
0:00:36.6]} 56... Qh5+ {[%clk 0:00:13.3]} 57. Kg7 {[%clk 0:00:37.4]} 57... Ra7+
{[%clk 0:00:13.3]} 58. Kf6 {[%clk 0:00:37.8]} 58... Qf5# {[%clk 0:00:12.5]} 0-1

[Event "*** Titled Tuesday Blitz"]
[Site "Chess.com"]
[Date "2018.04.03"]
[Round "3"]
[White "OparinGrigoriy"]
[Black "TheLancer"]
[Result "0-1"]
[WhiteElo "2822"]
[BlackElo "2443"]
[TimeControl "180+2"]
[EndTime "13:37:48 PDT"]
[Termination "TheLancer won by resignation"]

1. e4 {[%clk 0:03:01.9]} 1... c5 {[%clk 0:03:00.1]} 2. Nf3 {[%clk 0:03:03.3]}
2... g6 {[%clk 0:03:00.8]} 3. Nc3 {[%clk 0:03:05.2]} 3... Bg7 {[%clk 0:03:01.3]}
4. Bc4 {[%clk 0:03:06.7]} 4... Nc6 {[%clk 0:02:58.9]} 5. d3 {[%clk 0:03:08]}
5... e6 {[%clk 0:02:57.4]} 6. O-O {[%clk 0:03:09.2]} 6... Nge7 {[%clk
0:02:56.8]} 7. a4 {[%clk 0:03:08.5]} 7... O-O {[%clk 0:02:54.7]} 8. Bb3 {[%clk
0:03:06.1]} 8... d5 {[%clk 0:02:46.9]} 9. Bg5 {[%clk 0:03:02.9]} 9... h6 {[%clk
0:02:01.2]} 10. Bh4 {[%clk 0:02:56.7]} 10... g5 {[%clk 0:02:00.7]} 11. Bg3
{[%clk 0:02:56.3]} 11... f5 {[%clk 0:02:00.4]} 12. exf5 {[%clk 0:02:53.7]} 12...
exf5 {[%clk 0:01:53]} 13. h3 {[%clk 0:02:53.9]} 13... f4 {[%clk 0:01:53.4]} 14.
Bh2 {[%clk 0:02:55]} 14... Be6 {[%clk 0:01:46]} 15. Re1 {[%clk 0:02:55.4]} 15...
Bf7 {[%clk 0:01:42.6]} 16. Kh1 {[%clk 0:02:47.5]} 16... Nf5 {[%clk 0:01:33.5]}
17. Qd2 {[%clk 0:02:45.2]} 17... Nfd4 {[%clk 0:01:23.8]} 18. Nxd4 {[%clk
0:02:38.7]} 18... Nxd4 {[%clk 0:01:24.2]} 19. Ba2 {[%clk 0:02:40.2]} 19... Qd7
{[%clk 0:01:04.9]} 20. Rab1 {[%clk 0:02:34.6]} 20... f3 {[%clk 0:00:55.5]} 21.
g4 {[%clk 0:02:34]} 21... a5 {[%clk 0:00:39.8]} 22. Bg3 {[%clk 0:02:31.3]} 22...
Rae8 {[%clk 0:00:39.7]} 23. Re3 {[%clk 0:02:09.8]} 23... h5 {[%clk 0:00:25.4]}
24. Rxe8 {[%clk 0:02:05.1]} 24... Rxe8 {[%clk 0:00:25.5]} 25. Qxg5 {[%clk
0:02:02.1]} 25... hxg4 {[%clk 0:00:25.6]} 26. Nxd5 {[%clk 0:01:56.6]} 26... Kf8
{[%clk 0:00:15.6]} 27. Nf6 {[%clk 0:01:41.6]} 27... Qe7 {[%clk 0:00:10.9]} 28.
Nh7+ {[%clk 0:01:26.7]} 28... Kg8 {[%clk 0:00:11.7]} 29. Qxe7 {[%clk 0:01:24.8]}
29... Rxe7 {[%clk 0:00:12.5]} 30. Bxf7+ {[%clk 0:01:26.2]} 30... Kxf7 {[%clk
0:00:12.9]} 31. Ng5+ {[%clk 0:01:26.2]} 31... Kg6 {[%clk 0:00:13.8]} 32. Ne4
{[%clk 0:01:27.4]} 32... b6 {[%clk 0:00:14.3]} 33. c3 {[%clk 0:01:25]} 33... Ne2
{[%clk 0:00:13.4]} 34. Bh2 {[%clk 0:01:06.8]} 34... c4 {[%clk 0:00:13.9]} 35.
Nd2 {[%clk 0:00:56.1]} 35... cxd3 {[%clk 0:00:13.5]} 36. hxg4 {[%clk 0:00:57.7]}
36... Bh6 {[%clk 0:00:11.4]} 37. Nxf3 {[%clk 0:00:58.4]} 37... d2 {[%clk
0:00:11.7]} 38. Rd1 {[%clk 0:00:58.8]} 38... Rf7 {[%clk 0:00:12.9]} 39. Kg2
{[%clk 0:00:59.5]} 39... Nf4+ {[%clk 0:00:12.9]} 40. Bxf4 {[%clk 0:01:00.3]}
40... Bxf4 {[%clk 0:00:14.8]} 41. Nd4 {[%clk 0:00:49]} 41... Re7 {[%clk
0:00:13.5]} 42. Kf3 {[%clk 0:00:49.4]} 42... Re1 {[%clk 0:00:12.8]} 43. Rxd2
{[%clk 0:00:18.3]} 43... Bxd2 {[%clk 0:00:14.7]} 44. Kg3 {[%clk 0:00:17.2]}
44... Rb1 {[%clk 0:00:13.8]} 45. f4 {[%clk 0:00:17.5]} 45... Rxb2 {[%clk
0:00:14.4]} 46. Kf3 {[%clk 0:00:16.6]} 46... Bxc3 {[%clk 0:00:14.2]} 47. f5+
{[%clk 0:00:16.6]} 47... Kf6 {[%clk 0:00:14.5]} 48. Ne6 {[%clk 0:00:17.2]} 48...
Be5 {[%clk 0:00:15.3]} 49. Nf8 {[%clk 0:00:13.4]} 49... Rb3+ {[%clk 0:00:15.2]}
50. Ke2 {[%clk 0:00:09.8]} 50... Rb4 {[%clk 0:00:11.5]} 51. Nd7+ {[%clk
0:00:10.2]} 51... Ke7 {[%clk 0:00:12.8]} 0-1